bitfinex-derivatives/quotes_BTCF0:USTF0_20241213
["timestamp","ask_amount","ask_price","bid_price","bid_amount"]
[1734096366649,0.53508998,100110.0,100100.0,0.29229431]
[1734096368759,0.53508998,100110.0,100100.0,0.31268272]
[1734096370753,0.62455945,100110.0,100100.0,0.31268272]
[1734096370954,0.53508998,100110.0,100100.0,0.31268272]
[1734096372150,0.59802476,100110.0,100100.0,0.17940753]
[1734096372354,0.59802476,100110.0,100090.0,0.79917649]
[1734096372355,0.049952,100100.0,100090.0,0.47858402]
[1734096372656,0.25875103,100100.0,100090.0,0.5415188]
[1734096372856,0.25875103,100100.0,100090.0,1.08524363]
[1734096373056,0.25875103,100100.0,100090.0,0.58524363]
[1734096373252,0.20879903,100100.0,100090.0,1.08524363]
[1734096373453,0.16279903,100110.0,100090.0,2.48365825]
[1734096373653,0.16279903,100110.0,100100.0,0.6588485]
[1734096373952,0.16279903,100110.0,100100.0,1.20257113]
[1734096374662,0.15979903,100110.0,100100.0,1.20257113]
[1734096375060,0.15979903,100110.0,100100.0,1.02315175]
[1734096375261,0.16379903,100110.0,100100.0,1.02315175]
[1734096375462,0.16379903,100110.0,100100.0,0.97942912]
[1734096375661,0.17426073,100110.0,100100.0,0.97942912]
[1734096376461,0.17426073,100110.0,100100.0,0.91649434]
[1734096376759,0.68424431,100110.0,100100.0,0.97942912]
[1734096376959,0.53506073,100110.0,100100.0,0.97942912]
[1734096377156,0.6844509,100110.0,100100.0,0.97942912]
[1734096377366,0.56493058,100110.0,100100.0,0.97942912]
[1734096377863,0.62786536,100110.0,100100.0,0.78935956]
[1734096378061,0.51498358,100110.0,100100.0,0.45895197]
[1734096378361,0.51498358,100110.0,100100.0,1.20224299]
[1734096378567,0.6345302,100110.0,100100.0,1.19867526]
[1734096379063,0.12454662,100110.0,100100.0,2.32848167]
[1734096381774,0.12454662,100110.0,100100.0,2.20261211]
[1734096382069,0.12454662,100110.0,100100.0,2.32848167]
[1734096383371,0.12454662,100110.0,100100.0,1.9693555]
[1734096384171,0.005,100110.0,100100.0,2.32848167]
[1734096384770,0.005,100110.0,100100.0,2.32646215]
[1734096385570,0.005,100110.0,100100.0,2.65666215]
[1734096385766,0.11954662,100120.0,100110.0,0.049947]
[1734096385974,0.2687302,100130.0,100120.0,0.049942]
[1734096386175,0.11954662,100130.0,100120.0,1.07489434]
[1734096386371,0.11954662,100130.0,100120.0,1.27560124]
[1734096386676,0.11954662,100130.0,100120.0,1.38224326]
[1734096386878,0.11954662,100130.0,100120.0,1.68153636]
[1734096387263,0.11954662,100130.0,100120.0,1.67844874]
[1734096387468,0.11954662,100130.0,100120.0,1.38224527]
[1734096387870,0.11954662,100130.0,100120.0,1.02144527]
[1734096388074,0.12354662,100130.0,100120.0,0.97773602]
[1734096388276,0.12354662,100130.0,100120.0,1.15714117]
[1734096389173,0.12454662,100130.0,100120.0,1.15714117]
[1734096389866,0.12454662,100130.0,100120.0,0.96142776]
[1734096390269,0.12454662,100130.0,100120.0,0.91771671]
[1734096390477,0.12454662,100130.0,100120.0,0.92758746]
[1734096391578,0.5982184,100130.0,100120.0,0.72934715]
[1734096391764,0.51774662,100130.0,100120.0,0.35521671]
[1734096391968,0.15694662,100130.0,100120.0,0.85521671]
[1734096392369,0.15694662,100130.0,100120.0,0.35521671]
[1734096392568,0.15694662,100130.0,100120.0,0.85521671]
[1734096392974,0.15694662,100130.0,100120.0,0.35521671]
[1734096393174,0.15694662,100130.0,100120.0,0.85521671]
[1734096393576,0.15694662,100130.0,100120.0,0.35521671]
[1734096393772,0.15694662,100130.0,100120.0,0.85521671]
[1734096394074,0.15694662,100130.0,100120.0,0.35521671]
[1734096394374,0.12454662,100130.0,100120.0,0.85521671]
[1734096394576,0.12454662,100130.0,100120.0,1.45544117]
[1734096394577,0.005,100130.0,100120.0,1.45544117]
[1734096394772,0.005,100130.0,100120.0,1.049629]
[1734096394969,0.15354525,100140.0,100130.0,0.17580656]
[1734096395276,0.15354525,100140.0,100130.0,1.094071]
[1734096395469,0.15354525,100140.0,100130.0,0.85506275]
[1734096395776,0.6617302,100150.0,100140.0,0.049932]
[1734096395980,0.6617302,100150.0,100140.0,0.17580156]
[1734096396276,0.6617302,100150.0,100140.0,0.67580156]
[1734096396479,0.6617302,100150.0,100140.0,0.17580156]
[1734096396670,0.6617302,100150.0,100140.0,0.67580156]
[1734096396868,0.6667302,100150.0,100140.0,0.67680156]
[1734096397064,0.51754662,100150.0,100140.0,0.17680156]
[1734096397265,0.005,100150.0,100140.0,1.27979253]
[1734096397470,0.005,100150.0,100140.0,1.518266]
[1734096397670,0.005,100150.0,100140.0,1.08120078]
[1734096397878,0.005,100150.0,100140.0,1.550166]
[1734096398077,0.013,100150.0,100140.0,1.551166]
[1734096399370,0.013,100150.0,100140.0,1.31215775]
[1734096399670,0.011,100150.0,100140.0,1.31115775]
[1734096400072,0.01,100150.0,100140.0,1.31115775]
[1734096401181,0.01,100150.0,100140.0,1.32124102]
[1734096402088,0.008,100150.0,100140.0,1.32124102]
[1734096403172,0.56046662,100170.0,100140.0,1.3831758]
[1734096403476,0.56046662,100170.0,100160.0,0.17579156]
[1734096404581,0.56646662,100170.0,100160.0,0.17579156]
[1734096404781,0.56646662,100170.0,100160.0,0.11285678]
[1734096404980,0.56546662,100170.0,100160.0,0.11385678]
[1734096405683,0.57046662,100170.0,100160.0,0.11385678]
[1734096406384,0.56546662,100170.0,100160.0,0.11385678]
[1734096406587,0.6334014,100170.0,100160.0,0.050922]
[1734096406886,0.6334014,100170.0,100160.0,0.11385678]
[1734096407189,0.6334014,100170.0,100160.0,0.050922]
[1734096407481,0.88242025,100170.0,100160.0,0.050922]
[1734096409081,0.88242025,100170.0,100160.0,0.001]
[1734096409281,0.76287363,100170.0,100160.0,0.001]
[1734096410176,0.94189392,100170.0,100160.0,0.001]
[1734096410377,1.3048287,100170.0,100140.0,0.06293478]
[1734096410578,0.410729,100150.0,100140.0,0.11286078]
[1734096411178,0.049929,100150.0,100140.0,0.11286078]
[1734096411384,0.410729,100150.0,100140.0,0.11286078]
[1734096411682,0.049929,100150.0,100140.0,0.35605175]
[1734096412078,0.410729,100150.0,100140.0,0.35605175]
[1734096412279,0.53082763,100150.0,100140.0,0.17679556]
[1734096412476,0.17002763,100150.0,100140.0,0.35605175]
[1734096412682,0.050929,100150.0,100140.0,0.35605175]
[1734096412882,0.17002763,100150.0,100140.0,0.35605175]
[1734096413385,0.050929,100150.0,100140.0,0.35505175]
[1734096413581,0.053929,100150.0,100140.0,0.35505175]
[1734096413778,0.53382763,100150.0,100140.0,0.35505175]
[1734096414081,0.17302763,100150.0,100140.0,0.35505175]
[1734096418790,0.17302763,100150.0,100140.0,0.85505175]
[1734096418990,0.17302763,100150.0,100140.0,0.91845175]
[1734096419193,0.17302763,100150.0,100140.0,0.41845175]
[1734096419584,0.17302763,100150.0,100140.0,0.91845175]
[1734096419785,0.17302763,100150.0,100140.0,0.41845175]
[1734096420081,0.17302763,100150.0,100140.0,0.91845175]
[1734096420286,0.53382763,100150.0,100140.0,0.91845175]
[1734096420487,0.53382763,100150.0,100140.0,0.35551697]
[1734096420694,0.53382763,100150.0,100140.0,0.41845175]
[1734096421693,0.53382763,100150.0,100140.0,0.23919556]
[1734096421993,0.53382763,100150.0,100140.0,0.41845175]
[1734096422386,0.68301121,100150.0,100140.0,0.41845175]
[1734096423089,0.32221121,100150.0,100140.0,0.41845175]
[1734096423297,0.68301121,100150.0,100140.0,0.41845175]
[1734096423597,0.68301121,100150.0,100140.0,0.29211697]
[1734096423890,0.68301121,100150.0,100140.0,0.22918219]
[1734096424093,0.68301121,100150.0,100140.0,0.11286078]
[1734096424094,0.56391258,100150.0,100140.0,0.11286078]
[1734096424288,0.77463287,100150.0,100140.0,0.11286078]
[1734096424488,0.77463287,100150.0,100140.0,0.29211697]
[1734096424703,0.77463287,100150.0,100140.0,0.11286078]
[1734096426292,0.77463287,100150.0,100140.0,0.35505175]
[1734096427091,0.71498806,100150.0,100140.0,0.35505175]
[1734096427293,0.59561258,100150.0,100140.0,0.35505175]
[1734096427894,0.77463287,100150.0,100140.0,0.35505175]
[1734096428201,0.77463287,100150.0,100140.0,0.17579556]
[1734096429188,0.77463287,100150.0,100140.0,0.35505175]
[1734096429587,0.77463287,100150.0,100140.0,0.17579556]
[1734096430387,0.77463287,100150.0,100140.0,0.11286078]
[1734096430890,0.77461685,100150.0,100140.0,0.11286078]
[1734096431092,0.77461717,100150.0,100140.0,0.11286078]
[1734096433496,0.77461717,100150.0,100140.0,0.17579556]
[1734096434393,0.59559688,100150.0,100140.0,0.29211697]
[1734096435889,0.77461717,100150.0,100140.0,0.29211697]
[1734096436287,0.62544929,100150.0,100140.0,0.29211697]
[1734096436496,0.77470523,100150.0,100140.0,0.29211697]
[1734096437591,0.62544929,100150.0,100140.0,0.29211697]
[1734096439198,0.18302029,100150.0,100140.0,0.35505175]
[1734096439390,0.33233398,100150.0,100140.0,1.09406]
[1734096439589,0.33233398,100150.0,100140.0,0.59406]
[1734096439787,0.33233398,100150.0,100140.0,1.13776277]
[1734096440304,0.33233398,100150.0,100140.0,1.09406]
[1734096440305,0.15331369,100150.0,100140.0,1.09406]
[1734096440486,0.15331369,100150.0,100140.0,0.91480381]
[1734096444491,0.15331369,100150.0,100140.0,1.09443874]
[1734096445095,0.33233398,100150.0,100140.0,1.09443874]
[1734096445292,0.15331369,100150.0,100140.0,1.09443874]
[1734096445497,0.15331369,100150.0,100140.0,1.13814123]
[1734096445694,0.15331369,100150.0,100140.0,1.13813172]
[1734096446299,0.33233398,100150.0,100140.0,1.13813172]
[1734096447589,0.15331369,100150.0,100140.0,1.27560381]
[1734096447901,0.15331369,100150.0,100140.0,0.91480381]
[1734096448896,0.15331369,100150.0,100140.0,1.09443496]
[1734096449504,0.15331369,100150.0,100140.0,1.09444028]
[1734096450902,0.15331369,100150.0,100140.0,1.13814298]
[1734096451200,0.33233398,100150.0,100140.0,1.13814298]
[1734096451591,0.15331369,100150.0,100140.0,1.13814298]
[1734096452097,0.33233398,100150.0,100140.0,1.13814298]
[1734096452999,0.15331369,100150.0,100140.0,1.13814298]
[1734096453499,0.15331369,100150.0,100140.0,1.31930651]
[1734096453694,0.15331369,100150.0,100140.0,1.13812866]
[1734096454298,0.15331369,100150.0,100140.0,0.95850651]
[1734096454504,0.15331369,100150.0,100140.0,0.97877372]
[1734096454807,0.27272441,100150.0,100140.0,1.97417938]
[1734096455002,0.27272441,100150.0,100140.0,1.59516412]
[1734096455302,0.27272441,100150.0,100140.0,1.23436412]
[1734096455495,0.27272441,100150.0,100140.0,1.56945652]
[1734096456098,0.27272441,100150.0,100140.0,1.23436412]
[1734096456706,0.27271878,100150.0,100140.0,0.93507102]
[1734096456999,0.27271914,100150.0,100140.0,1.23436412]
[1734096457298,0.15331369,100150.0,100140.0,0.93507102]
[1734096458901,0.15331369,100150.0,100140.0,1.29587102]
[1734096459106,0.15331369,100150.0,100140.0,1.93118824]
[1734096459306,0.27271827,100150.0,100140.0,1.93118824]
[1734096459896,0.27271827,100150.0,100140.0,1.97488844]
[1734096460099,0.27271827,100150.0,100140.0,1.95462123]
[1734096460808,0.11940458,100150.0,100140.0,2.28712751]
[1734096461002,0.11940458,100150.0,100140.0,2.25429273]
[1734096461213,0.07050458,100150.0,100140.0,2.25429273]
[1734096461408,0.07050458,100150.0,100140.0,2.12842317]
[1734096461600,0.15323669,100160.0,100150.0,0.049927]
[1734096461803,0.15323669,100160.0,100150.0,0.65159425]
[1734096462112,0.15323669,100160.0,100150.0,0.85229843]
[1734096462299,0.15323669,100160.0,100150.0,0.78936365]
[1734096462505,0.54633669,100160.0,100150.0,0.53186321]
[1734096462802,0.54933669,100160.0,100150.0,0.53187372]
[1734096463197,0.55333669,100160.0,100150.0,0.53287372]
[1734096466015,0.55333669,100160.0,100150.0,0.54310202]
[1734096466211,0.73235698,100160.0,100150.0,0.54310202]
[1734096469515,0.51295778,100160.0,100150.0,0.23050229]
[1734096469920,0.69197807,100160.0,100150.0,0.29343707]
[1734096471220,0.69197807,100160.0,100150.0,0.050927]
[1734096472726,0.69197807,100160.0,100150.0,0.11386178]
[1734096472922,0.62904329,100160.0,100150.0,0.11386178]
[1734096473130,0.69197807,100160.0,100150.0,0.11386178]
[1734096473625,0.62904329,100160.0,100150.0,0.11386178]
[1734096475527,0.69197807,100160.0,100150.0,0.11386178]
[1734096476123,0.62904329,100160.0,100150.0,0.11386178]
[1734096477034,0.450023,100160.0,100150.0,0.11386178]
[1734096477229,0.62929521,100160.0,100150.0,0.11386178]
[1734096477631,0.62929521,100160.0,100150.0,0.29343707]
[1734096481744,0.26849521,100160.0,100150.0,0.29343707]
[1734096481934,0.26849521,100160.0,100150.0,0.35463707]
[1734096482537,0.26849521,100160.0,100150.0,0.59407372]
[1734096482830,0.62929521,100160.0,100150.0,0.59407372]
[1734096484546,0.59699521,100160.0,100150.0,0.59407372]
[1734096485038,0.65992999,100160.0,100150.0,0.46993894]
[1734096485347,0.62989521,100160.0,100150.0,0.53287372]
[1734096485540,0.62989521,100160.0,100150.0,0.29343707]
[1734096490237,0.62989521,100160.0,100150.0,0.53287372]
[1734096496046,0.62989521,100160.0,100150.0,0.46993894]
[1734096496253,0.62989521,100160.0,100150.0,0.53287372]
[1734096500952,0.26909521,100160.0,100150.0,0.53287372]
[1734096501253,0.62989521,100160.0,100150.0,0.53287372]
[1734096502460,0.23619521,100160.0,100150.0,0.53287372]
[1734096502759,0.38566272,100160.0,100150.0,0.41559843]
[1734096502964,0.20639051,100160.0,100150.0,0.41559843]
[1734096505658,0.38566272,100160.0,100150.0,0.7585925]
[1734096506263,0.38566272,100160.0,100150.0,0.63894868]
[1734096506462,0.38566272,100160.0,100150.0,0.45929668]
[1734096507156,0.38566272,100160.0,100150.0,0.63894787]
[1734096507355,0.38566272,100160.0,100150.0,0.45929668]
[1734096507564,0.38566272,100160.0,100150.0,0.41559843]
[1734096510569,0.20639051,100160.0,100150.0,0.41559843]
[1734096513571,0.38566272,100160.0,100150.0,0.41559843]
[1734096514272,0.20639051,100160.0,100150.0,0.41559843]
[1734096514573,0.38566272,100160.0,100150.0,0.41559843]
[1734096515168,0.20639051,100160.0,100150.0,0.41559843]
[1734096515871,0.38566272,100160.0,100150.0,0.59524373]
[1734096516074,0.38566272,100160.0,100150.0,0.63894195]
[1734096516577,0.33573972,100160.0,100150.0,1.61939247]
[1734096516774,0.15646751,100160.0,100150.0,1.95774637]
[1734096517479,0.15646751,100160.0,100150.0,1.91404815]
[1734096517670,0.15646751,100160.0,100150.0,1.57569425]
[1734096519475,0.15639304,100160.0,100150.0,1.97466598]
[1734096519663,0.14941048,100170.0,100150.0,2.7816609]
[1734096519869,0.17927165,100180.0,100170.0,0.049917]
[1734096520071,0.5914782,100190.0,100170.0,1.40874123]
[1734096520269,0.5914782,100190.0,100180.0,0.35536749]
[1734096520573,0.41220655,100190.0,100180.0,0.35536749]
[1734096520779,0.41220655,100190.0,100180.0,0.29243271]
[1734096521472,0.41220655,100190.0,100180.0,0.35536749]
[1734096522176,0.414709,100190.0,100180.0,0.35536749]
[1734096522378,0.414709,100190.0,100180.0,0.35636749]
[1734096523076,0.42447946,100190.0,100180.0,0.35636749]
[1734096523272,0.54376177,100190.0,100180.0,0.35636749]
[1734096525077,0.54376177,100190.0,100180.0,0.17678156]
[1734096525781,0.54376177,100190.0,100180.0,0.11384678]
[1734096526278,0.54376177,100190.0,100180.0,0.17678156]
[1734096527378,0.54376177,100190.0,100180.0,0.11384678]
[1734096527575,0.54376177,100190.0,100180.0,0.050912]
[1734096527576,0.60669655,100190.0,100180.0,0.050912]
[1734096530074,0.60669655,100190.0,100180.0,0.001]
[1734096530282,0.58722958,100190.0,100180.0,0.001]
[1734096530487,0.049917,100170.0,100160.0,0.53190319]
[1734096530778,0.47365178,100170.0,100160.0,0.22950393]
[1734096530982,0.47365178,100170.0,100160.0,0.049918]
[1734096531382,0.95360933,100170.0,100160.0,0.049918]
[1734096532685,0.049922,100160.0,100150.0,0.23100847]
[1734096532977,0.6546202,100160.0,100150.0,0.05142254]
[1734096533185,0.6546202,100160.0,100150.0,0.049925]
[1734096533495,0.59168542,100160.0,100150.0,0.11285978]
[1734096533987,0.6546202,100160.0,100150.0,0.11285978]
[1734096534376,0.6546202,100160.0,100150.0,0.11485978]
[1734096534580,0.6546202,100160.0,100150.0,0.11585978]
[1734096539095,0.6546202,100160.0,100150.0,0.052925]
[1734096539384,0.6546202,100160.0,100150.0,0.11585978]
[1734096541179,0.6546202,100160.0,100150.0,0.003]
[1734096541180,0.71755498,100160.0,100150.0,0.003]
[1734096541382,0.59168542,100160.0,100150.0,0.11586178]
[1734096547893,0.59168542,100160.0,100150.0,0.12565548]
[1734096554701,0.6546202,100160.0,100150.0,0.11586178]
[1734096554993,0.6546202,100160.0,100150.0,0.052927]
[1734096555684,0.59168542,100160.0,100150.0,0.11586178]
[1734096556303,0.74058077,100160.0,100150.0,0.11586178]
[1734096557188,0.74058077,100160.0,100150.0,0.29544771]
[1734096557586,0.11916342,100160.0,100150.0,0.71918249]
[1734096557890,0.11916342,100160.0,100150.0,1.46021219]
[1734096558192,0.67877777,100170.0,100160.0,0.049922]
[1734096558394,0.67898812,100170.0,100160.0,0.29223298]
[1734096559290,0.55961435,100170.0,100160.0,0.29223298]
[1734096560098,0.738886,100170.0,100160.0,0.29223298]
[1734096560795,0.738886,100170.0,100160.0,0.35516776]
[1734096561003,0.688967,100170.0,100160.0,0.59463224]
[1734096561190,0.50969535,100170.0,100160.0,0.59463224]
[1734096561387,0.51069535,100170.0,100160.0,0.59463224]
[1734096561591,0.51069535,100170.0,100160.0,0.41525604]
[1734096561800,0.14989535,100170.0,100160.0,0.59480765]
[1734096561998,0.26940311,100170.0,100160.0,0.41525604]
[1734096562501,0.26940311,100170.0,100160.0,1.05931665]
[1734096562795,0.12050776,100170.0,100160.0,1.10300982]
[1734096563007,0.12050776,100170.0,100160.0,1.42011665]
[1734096563198,0.12050776,100170.0,100160.0,2.08359059]
[1734096563199,0.001,100170.0,100160.0,2.08359059]
[1734096563392,0.11950776,100180.0,100170.0,0.049917]
[1734096563592,0.11950776,100180.0,100170.0,0.71222759]
[1734096564087,0.11950776,100180.0,100170.0,0.95312486]
[1734096564396,0.16941976,100180.0,100170.0,1.09232486]
[1734096564702,0.17041976,100180.0,100170.0,0.59332486]
[1734096565104,0.17041976,100180.0,100170.0,0.59232486]
[1734096565288,0.20101976,100180.0,100170.0,0.22934872]
[1734096565488,0.74191511,100180.0,100170.0,0.2922835]
[1734096567303,0.59301976,100180.0,100170.0,0.11285178]
[1734096568700,0.65595454,100180.0,100170.0,0.11285178]
[1734096568911,0.86778467,100180.0,100170.0,0.049917]
[1734096569108,0.90058467,100180.0,100170.0,0.049917]
[1734096569299,0.78107691,100180.0,100160.0,0.17943172]
[1734096569500,0.59293816,100170.0,100160.0,0.049919]
[1734096570203,0.74183351,100170.0,100160.0,0.049919]
[1734096570411,0.67246913,100170.0,100150.0,0.3422145]
[1734096570601,0.59549602,100160.0,100150.0,0.2922905]
[1734096571805,0.6584308,100160.0,100150.0,0.22935572]
[1734096572108,0.59549602,100160.0,100150.0,0.22935572]
[1734096572302,0.6584308,100160.0,100150.0,0.22935572]
[1734096572703,0.6584308,100160.0,100150.0,0.049924]
[1734096572903,0.6584308,100160.0,100150.0,0.058924]
[1734096572904,0.80732615,100160.0,100150.0,0.058924]
[1734096573703,0.80832615,100160.0,100150.0,0.064924]
[1734096574409,0.84122615,100160.0,100150.0,0.064924]
[1734096576200,0.48042615,100160.0,100150.0,0.064924]
[1734096576409,0.84122615,100160.0,100150.0,0.064924]
[1734096580608,0.84122615,100160.0,100150.0,0.07228158]
[1734096582106,0.48042615,100160.0,100150.0,0.07228158]
[1734096582307,0.84122615,100160.0,100150.0,0.07228158]
[1734096584006,0.77829137,100160.0,100150.0,0.07228158]
[1734096584310,0.84122615,100160.0,100150.0,0.07228158]
[1734096584512,0.77829137,100160.0,100150.0,0.07228158]
[1734096584709,0.84122615,100160.0,100150.0,0.07228158]
[1734096586925,0.48042615,100160.0,100150.0,0.07228158]
[1734096587101,0.84122615,100160.0,100150.0,0.07228158]
[1734096589113,0.72195213,100160.0,100150.0,0.07228158]
[1734096591316,0.78488691,100160.0,100150.0,0.02235758]
[1734096591620,0.90122378,100160.0,100150.0,0.07228458]
[1734096592007,0.86832378,100160.0,100150.0,0.13521936]
[1734096592318,0.62611735,100160.0,100150.0,0.13521936]
[1734096592722,0.62611735,100160.0,100150.0,0.16821936]
[1734096592918,0.74535817,100160.0,100150.0,0.16821936]
[1734096593618,0.71255817,100160.0,100150.0,0.16821936]
[1734096593805,0.59331735,100160.0,100150.0,0.16821936]
[1734096594013,0.71256919,100160.0,100150.0,0.16821936]
[1734096594212,0.59331735,100160.0,100150.0,0.16821936]
[1734096595420,0.59331735,100160.0,100150.0,0.20071936]
[1734096596225,0.772589,100160.0,100150.0,0.20071936]
[1734096596524,0.59331735,100160.0,100150.0,0.38015108]
[1734096597221,0.56061735,100160.0,100150.0,0.38015108]
[1734096597724,0.19981735,100160.0,100150.0,0.38015108]
[1734096597913,0.31922528,100160.0,100150.0,0.61939244]
[1734096598120,0.19981735,100160.0,100150.0,0.61939244]
[1734096598621,0.56061735,100160.0,100150.0,0.61939244]
[1734096599218,0.739889,100160.0,100150.0,0.61939244]
[1734096599613,0.59099365,100160.0,100150.0,0.55645766]
[1734096599816,0.65392843,100160.0,100150.0,0.55645766]
[1734096600011,0.68682843,100160.0,100150.0,0.3172163]
[1734096600222,0.68682843,100160.0,100150.0,0.55645766]
[1734096601625,0.68682843,100160.0,100150.0,0.3172163]
[1734096602020,0.68682843,100160.0,100150.0,0.2517163]
[1734096602425,0.74976321,100160.0,100150.0,0.2017893]
[1734096602622,0.62389365,100160.0,100150.0,0.31465108]
[1734096602831,0.68688769,100160.0,100150.0,0.31465108]
[1734096603930,0.62295291,100160.0,100150.0,0.54789244]
[1734096604323,0.62295291,100160.0,100150.0,0.35946072]
[1734096604727,0.62295291,100160.0,100150.0,0.53914965]
[1734096605137,0.62295291,100160.0,100150.0,0.54214965]
[1734096606931,0.62295291,100160.0,100150.0,0.42928787]
[1734096606932,0.68588769,100160.0,100150.0,0.42928787]
[1734096607118,0.74882247,100160.0,100150.0,0.19004651]
[1734096607318,0.60129156,100160.0,100150.0,0.19004651]
[1734096607530,0.81244182,100160.0,100150.0,0.00935758]
[1734096607735,0.91228705,100160.0,100150.0,0.00935758]
[1734096607929,0.91228705,100160.0,100150.0,0.00735758]
[1734096608235,1.15131591,100160.0,100150.0,0.00735758]
[1734096609237,0.91228705,100160.0,100150.0,0.00735758]
[1734096609433,1.15131591,100160.0,100150.0,0.00735758]
[1734096611340,0.8831963,100160.0,100150.0,0.00735758]
[1734096613935,0.68757226,100160.0,100150.0,0.05728458]
[1734096614130,0.478422,100160.0,100150.0,0.05728458]
[1734096614640,0.6575306,100160.0,100150.0,0.05728458]
[1734096614933,0.6257306,100160.0,100150.0,0.15306339]
[1734096615135,0.6257306,100160.0,100150.0,0.18616339]
[1734096615339,0.6247306,100160.0,100150.0,0.18616339]
[1734096615540,0.6257306,100160.0,100150.0,0.18616339]
[1734096615942,0.6237306,100160.0,100150.0,0.18616339]
[1734096617044,0.5908306,100160.0,100150.0,0.18616339]
[1734096617442,0.56095958,100160.0,100150.0,0.36585232]
[1734096617644,0.56095958,100160.0,100150.0,1.10488159]
[1734096617645,0.51103758,100160.0,100150.0,1.10488159]
[1734096617849,0.63043889,100160.0,100150.0,1.13588159]
[1734096618037,0.26963889,100160.0,100150.0,0.99668159]
[1734096618342,0.26963889,100160.0,100150.0,1.54037842]
[1734096618542,0.11940131,100160.0,100150.0,2.00523363]
[1734096618742,0.11940131,100160.0,100150.0,2.00623363]
[1734096618944,0.06940131,100160.0,100150.0,1.9625368]
[1734096619149,0.01940131,100160.0,100150.0,1.9625368]
[1734096619445,0.55995758,100170.0,100150.0,1.72329544]
[1734096619647,0.55995758,100170.0,100160.0,0.59578343]
[1734096619847,0.41072,100170.0,100160.0,0.59578343]
[1734096620436,0.41072,100170.0,100160.0,0.60314101]
[1734096620845,0.41172,100170.0,100160.0,0.5073622]
[1734096621040,0.65673639,100170.0,100160.0,0.00735758]
[1734096621354,0.74006618,100170.0,100160.0,0.00735758]
[1734096622340,0.74006618,100170.0,100160.0,0.05727958]
[1734096622536,0.56095758,100170.0,100160.0,0.05727958]
[1734096622747,0.74006618,100170.0,100160.0,0.05727958]
[1734096624743,0.68574618,100170.0,100160.0,0.05727958]
[1734096625150,0.88136026,100170.0,100160.0,0.00735758]
[1734096625452,0.91376026,100170.0,100160.0,0.00735758]
[1734096625747,0.76452268,100170.0,100160.0,0.00735758]
[1734096630155,0.58541408,100170.0,100160.0,0.00735758]
[1734096631857,0.79456434,100170.0,100160.0,0.00735758]
[1734096638965,0.58541408,100170.0,100160.0,0.00735758]
[1734096642555,1.00053408,100170.0,100160.0,0.00735758]
[1734096643258,0.96758467,100170.0,100160.0,0.00735758]
[1734096643764,1.17673493,100170.0,100160.0,0.00735758]
[1734096646465,1.14673467,100170.0,100160.0,0.00735758]
[1734096646762,1.03041407,100170.0,100160.0,0.00735758]
[1734096646971,1.35293439,100170.0,100160.0,0.00735758]
[1734096647156,1.41576379,100170.0,100160.0,0.00735758]
[1734096647355,2.91576379,100170.0,100160.0,0.00735758]
[1734096647565,2.97859319,100170.0,100160.0,0.00735758]
[1734096647761,0.049927,100150.0,100140.0,0.17939255]
[1734096647965,1.16276651,100150.0,100140.0,0.17939255]
[1734096648268,1.19296651,100150.0,100140.0,0.17939255]
[1734096648473,1.34274871,100150.0,100130.0,0.53134602]
[1734096648657,0.4236294,100140.0,100130.0,0.53134602]
[1734096648959,0.4236294,100140.0,100130.0,0.53141268]
[1734096649363,0.51007732,100140.0,100130.0,0.53141268]
[1734096649668,0.51107732,100140.0,100130.0,0.53841268]
[1734096649864,0.62383872,100140.0,100130.0,0.29922261]
[1734096650569,0.62383872,100140.0,100130.0,0.53841268]
[1734096650767,0.62383872,100140.0,100130.0,0.29922261]
[1734096650967,0.62383872,100140.0,100130.0,0.53841268]
[1734096651367,0.62383872,100140.0,100130.0,0.30822261]
[1734096652960,0.63383053,100140.0,100130.0,0.30822261]
[1734096654163,0.56100932,100140.0,100130.0,0.30822261]
[1734096655455,0.56100932,100140.0,100130.0,0.54741268]
[1734096658667,0.62383872,100140.0,100130.0,0.30822261]
[1734096659869,0.56100932,100140.0,100130.0,0.30822261]
[1734096661065,0.56100932,100140.0,100130.0,0.54741268]
[1734096662073,0.68666812,100140.0,100130.0,0.43464928]
[1734096662380,0.89730091,100140.0,100130.0,0.19545921]
[1734096662560,0.74802359,100140.0,100130.0,0.016]
[1734096662961,0.84788877,100140.0,100130.0,0.016]
[1734096663169,0.87798877,100140.0,100130.0,0.016]
[1734096663368,0.69885598,100140.0,100130.0,0.016]
[1734096665265,0.81502976,100140.0,100130.0,0.065937]
[1734096665562,0.62223518,100140.0,100130.0,0.1287664]
[1734096665760,0.77138578,100140.0,100130.0,0.1287664]
[1734096666268,0.83420687,100140.0,100130.0,0.1287664]
[1734096666673,0.65520369,100140.0,100130.0,0.1287664]
[1734096667178,0.59237429,100140.0,100130.0,0.065937]
[1734096670376,0.59237429,100140.0,100130.0,0.24539621]
[1734096671168,0.59237429,100140.0,100130.0,0.065937]
[1734096672478,0.77137747,100140.0,100130.0,0.065937]
[1734096672670,0.59237429,100140.0,100130.0,0.065937]
[1734096672870,0.23157429,100140.0,100130.0,0.24539621]
[1734096673067,0.59237429,100140.0,100130.0,0.24539621]
[1734096673471,0.51094229,100140.0,100130.0,0.24539621]
[1734096673675,0.51094229,100140.0,100130.0,1.29776197]
[1734096673676,0.15014229,100140.0,100130.0,1.29776197]
[1734096673972,0.53980318,100150.0,100140.0,0.049932]
[1734096673973,0.14914229,100150.0,100140.0,0.049932]
[1734096674171,0.14914229,100150.0,100140.0,0.48545267]
[1734096674368,0.14914229,100150.0,100140.0,0.38966979]
[1734096674771,0.37807247,100150.0,100140.0,0.21021488]
[1734096674970,0.55986929,100150.0,100140.0,0.114432]
[1734096675177,0.73887247,100150.0,100140.0,0.051932]
[1734096675380,0.62043018,100150.0,100140.0,0.051932]
[1734096675676,0.62043018,100150.0,100140.0,0.052932]
[1734096675881,0.59073189,100150.0,100140.0,0.23238691]
[1734096676078,0.441427,100150.0,100140.0,0.052932]
[1734096677779,0.441427,100150.0,100140.0,0.4717764]
[1734096677977,0.59075883,100150.0,100140.0,0.23243674]
[1734096678480,0.76995703,100150.0,100140.0,0.23243674]
[1734096678678,0.86573991,100150.0,100140.0,0.18250474]
[1734096678985,0.71640808,100150.0,100140.0,0.003]
[1734096679177,0.81626328,100150.0,100140.0,0.003]
[1734096680585,0.81626328,100150.0,100140.0,0.052932]
[1734096681577,0.82631466,100150.0,100140.0,0.052932]
[1734096682284,0.64711646,100150.0,100140.0,0.003]
[1734096682579,0.85618103,100150.0,100140.0,0.003]
[1734096685479,0.64711646,100150.0,100140.0,0.003]
[1734096685873,0.55133358,100150.0,100140.0,0.052932]
[1734096686173,0.62054155,100150.0,100140.0,0.052932]
[1734096687483,0.71632443,100150.0,100140.0,0.052932]
[1734096687688,0.62054155,100150.0,100140.0,0.052932]
[1734096688292,0.62054155,100150.0,100140.0,0.14871488]
[1734096688293,0.58984155,100150.0,100140.0,0.14871488]
[1734096688479,0.58984155,100150.0,100140.0,0.21031488]